Workbook

Sheet model taryfy
E4: Uproszczony model taryfy EuRoPol GAZ s.a. *)
H5: Proszę nacisnąć przycisk (< lub >)
E6: Przychód regulowany | F6: PLN | G6: =H6*100000 -> 931943614.2 | H6: 9319.436142 | J6: =G6/'Arkusz1 (2)'!F47 -> 0.9714511709 | K6: **)
E7: Podział przychodu między punkty Entry/Exit | F7: % | G7: =H7/1000 -> 0.5150693743 | H7: 515.0693743
E8: Wykorzystanie zdolności technicznych SGT | F8: % | G8: =H8/100 -> 0.9160797885 | H8: 91.60797885
E10: Ceny referencyjne (stawki opłat przesyłowych):
E11: Kondratki ENTRY | F11: PLN/MWh/d | G11: ='Arkusz1 (2)'!M44 -> 1.388482089 | H11: gr/kWh/h | I11: =G11/10 -> 0.1388482089 | J11: =G11/'Arkusz1 (2)'!F44 -> 0.9714511709 | K11: **)
E12: PWP EXIT | F12: PLN/MWh/d | G12: ='Arkusz1 (2)'!M45 -> 0.4596950961 | H12: gr/kWh/h | I12: =G12/10 -> 0.04596950961 | J12: =G12/'Arkusz1 (2)'!F45 -> 0.9714511709 | K12: **)
E13: Mallnow ENTRY/EXIT | F13: PLN/MWh/d | G13: ='Arkusz1 (2)'!M46 -> 1.388478616 | H13: gr/kWh/h | I13: 0.1388478616 | J13: =G13/'Arkusz1 (2)'!F46 -> 0.9714511709 | K13: **)
E15: *) dane różne od danych indykatywnych mają charakter hipotetyczny (do symulacji zmian taryfy w stosunku założeń Dokumentu publikacyjnego)
E16: **) dane indykatywne zgodne z Dokumentem konsultacyjnym = 100%

Sheet Arkusz1 (2) (hidden)
F1: cieplo spal | G1: 10.5
E5: Dystanse/moce/punkt fizyczny
E7: punkty wejścia do SGT
E8: Kondratki
E9: km | F9: mld m3 | G9: MWh
C10: punkty | D10: Lwówek | E10: 581.6 | F10: 1.18 | G10: =J10 -> 12390000 | H10: =G10/$G$14 -> 0.03270610925 | I10: 0.03270610925 | J10: =$J$27*$J$29*I10 -> 12390000 | L10: 12390000
C11: wyjścia | D11: Włocławek | E11: 367.4 | F11: 1.7 | G11: =J11 -> 17850000 | H11: =G11/$G$14 -> 0.04711897096 | I11: 0.04711897096 | J11: =$J$27*$J$29*I11 -> 17850000 | L11: 17850000
C12: z SGT | D12: Mallnov | E12: 683.9 | F12: =28.76+1.285 -> 30.045 | G12: 315472500 | H12: 0.8327585191 | I12: 0.8327585191 | J12: 315472500 | L12: 315472500
F13: razem | G13: =SUM(G10:G12) -> 345712500 | H13: =(G14-G13)/G14 -> 0.08741640068 | I13: 0.08741640068 | J13: 33115807.08
F14: wykorz z rewersem | G14: 378828307.1 | H14: 1 | J14: =SUM(J10:J13) -> 378828307.1
E15: Dystanse ważone mocami/punkt wyjścia
E17: dystans x moc | F17: waga %
C18: punkty | D18: Lwówek | E18: =E10*G10 -> 7206024000 | F18: =E18/$E$21 -> 0.03139664179
C19: wyjścia | D19: Włocławek | E19: =E11*G11 -> 6558090000 | F19: =E19/$E$21 -> 0.02857359378
C20: z SGT | D20: Mallnov | E20: =E12*G12 -> 2.157516427e+11 | F20: =E20/$E$21 -> 0.9400297644
E21: =SUM(E18:E20) -> 2.295157567e+11 | F21: =SUM(F18:F20) -> 1
E23: moce / punkt | I23: inne | J23: =J24-G13 -> 33115807.08
E24: MWh | F24: dystanse ważone mocami | G24: waga dla punktu | J24: 378828307.1
C25: punkty SGT | D25: Kondratki | E25: =G12+G11+G10 -> 345712500 | F25: =(G10*E10+G11*E11+G12*E12)/(G10+G11+G12) -> 663.8919818 | G25: =(E25*F25)/(E25*F25) -> 1
D26: PWP | E26: =G10+G11 -> 30240000 | F26: =(E10*G10+E11*G11)/(G10+G11) -> 455.1625 | G26: =(E26*F26)/(E28*F28+E26*F26+E27*F31) -> 0.05997023557
D27: PWP | I27: zdolnośc techn | J27: 413532000
D28: Mallnow | E28: =G12 -> 315472500 | F28: =E12*G12/E28 -> 683.9 | G28: =(E28*F28)/(E28*F28+E26*F26+E27*F31) -> 0.9400297644 | I28: wykorz obecne | J28: 0.9160797885
I29: wykorz progn | J29: ='model taryfy'!G8 -> 0.9160797885
F30: punkty wejścia | G30: punkty wyjścia
D31: podział we/wy | E31: 1 | F31: ='model taryfy'!G7 -> 0.5150693743 | G31: =1-F31 -> 0.4849306257
D32: przychód regulowany | E32: ='model taryfy'!G6 -> 931943614.2 | F32: =E32*F31 -> 480015614.3 | G32: =E32*G31 -> 451927999.9
E35: przychód / punkt
E36: PLN
C37: punkty SGT | D37: Kondratki | E37: =G25*$F$32 -> 480015614.3 | F37: =E37/$E$40 -> 0.5150693743
D38: PWP | E38: =G26*$G$32 -> 27102228.62 | F38: =E38/$E$40 -> 0.02908140386
D39: Mallnow | E39: =G28*$G$32 -> 424825771.3 | F39: 0.4558492218
E40: =SUM(E37:E39) -> 931943614.2 | F40: =SUM(F37:F39) -> 1
E42: Stawki taryfowe / punkt
E43: PLN/MWh | F43: obecne (2018) | G43: nowe | H43: stare
C44: punkty SGT | D44: Kondratki | E44: =E37/E25 -> 1.388482089 | F44: 1.429286547 | G44: =E44*E25 -> 480015614.3 | H44: =F44*E25 -> 494122225.3 | J44: =H44/$E$40 -> 0.5302061388 | K44: =E32*F31/E25 -> 1.388482089 | L44: =K44*E25 -> 480015614.3 | M44: =E32*F31/E25 -> 1.388482089 | N44: =M44*E25 -> 480015614.3 | O44: ='model taryfy'!G6*'model taryfy'!G7/'Arkusz1 (2)'!E25 -> 1.388482089
D45: PWP | E45: =E38/E26 -> 0.8962377188 | F45: 0.4732045314 | G45: =E45*E26 -> 27102228.62 | H45: =F45*E26 -> 14309705.03 | I45: =H45/($H$45+$H$46) -> 0.03075972214 | J45: =H45/$E$40 -> 0.01535468972 | K45: =L45/E26 -> 0.4596588628 | L45: =G31*E32-L46 -> 13900084.01 | M45: =(E40-N44-N46)/E26 -> 0.4596950961 | N45: =M45*E26 -> 13901179.7 | O45: =('model taryfy'!G6*(1-'model taryfy'!G7)-O46*'Arkusz1 (2)'!E28)/'Arkusz1 (2)'!E26 -> 0.4596588628
D46: Mallnow | E46: =E39/E28 -> 1.346633292 | F46: 1.429282971 | G46: =E46*E28 -> 424825771.3 | H46: =F46*E28 -> 450899472.2 | I46: =H46/($H$45+$H$46) -> 0.9692402779 | J46: 0.4838269884 | K46: =K44 -> 1.388482089 | L46: =K46*E28 -> 438027915.9 | M46: =(G28*E32)/E28-M44 -> 1.388478616 | N46: =M46*E28 -> 438026820.2 | O46: =O44 -> 1.388482089
F47: 959331402.5 | H47: =SUM(H44:H46) -> 959331402.5
J50: staw jedn
D51: pgnig | E51: =E26*E45+E26*E44 -> 69089927 | F51: 57531330.2 | G51: =(M44+M45)*E26 -> 55888878.08 | H51: =F51/$F$53 -> 0.05997023557 | I51: =G51/$G$53 -> 0.05997023557 | J51: =G51/(E18+E19) -> 0.004060477709
D52: gex | E52: =E28*(E44+E46) -> 862853687.2 | F52: 901800072.3 | G52: =(M44+M46)*E28 -> 876054736.1 | H52: =F52/$F$53 -> 0.9400297644 | I52: =G52/$G$53 -> 0.9400297644 | J52: =G52/E20 -> 0.004060477709
E53: =SUM(E51:E52) -> 931943614.2 | F53: 959331402.5 | G53: =SUM(G51:G52) -> 931943614.2 | H53: 1 | I53: 1
B59: =B51*$F$32/2 -> 0
B66: =B59/E27 -> 
